fUSD/lending_fUSD_20251023
["ID","MTS","AMOUNT","RATE_DAILY","PERIOD"]
[392189989,1761246661360,-1242.79,0.00043835,120]
[392189990,1761246661370,-500.0,0.00043835,120]
[392189991,1761246661380,-500.0,0.00043835,120]
[392189992,1761246661389,-500.0,0.00043835,120]
[392189993,1761246661399,-500.0,0.00043835,120]
[392189994,1761246661409,-500.0,0.00043835,120]
[392189995,1761246661418,-500.0,0.00043835,120]
[392189996,1761246661428,-500.0,0.00043835,120]
[392189997,1761246661438,-500.0,0.00043835,120]
[392189998,1761246661448,-500.0,0.00043835,120]
[392189999,1761246661458,-500.0,0.00043835,120]
[392190000,1761246661467,-500.0,0.00043835,120]
[392190001,1761246661478,-500.0,0.00043835,120]
[392190002,1761246661488,-500.0,0.00043835,120]
[392190003,1761246661498,-447.46633912,0.00043835,120]
[392190004,1761246661509,-515.25574509,0.00043835,120]
[392190005,1761246661520,-500.0,0.00043835,120]
[392190006,1761246661529,-500.0,0.00043835,120]
[392190007,1761246661539,-926.78,0.00043835,120]
[392190008,1761246661548,-926.78,0.00043835,120]
[392190009,1761246661558,-926.78,0.00043835,120]
[392190010,1761246661567,-926.78,0.00043835,120]
[392190011,1761246661577,-926.78,0.00043835,120]
[392190012,1761246661587,-926.78,0.00043835,120]
[392190013,1761246661596,-926.78,0.00043835,120]
[392190014,1761246661606,-926.78,0.00043835,120]
[392190015,1761246661616,-926.78,0.00043835,120]
[392190016,1761246661626,-926.78,0.00043835,120]
[392190017,1761246661637,-926.78,0.00043835,120]
[392190018,1761246661648,-500.0,0.00043835,120]
[392190019,1761246661660,-926.78,0.00043835,120]
[392190020,1761246661671,-926.78,0.00043835,120]
[392190021,1761246661680,-500.0,0.00043835,120]
[392190022,1761246661690,-926.78,0.00043835,120]
[392190023,1761246661700,-500.0,0.00043835,120]
[392190024,1761246661710,-926.78,0.00043835,120]
[392190025,1761246661720,-500.0,0.00043835,120]
[392190026,1761246661731,-926.78,0.00043835,120]
[392190027,1761246661740,-500.0,0.00043835,120]
[392190028,1761246661750,-926.78,0.00043835,120]
[392190029,1761246661760,-500.0,0.00043835,120]
[392190030,1761246661770,-926.78,0.00043835,120]
[392190031,1761246661779,-409.66,0.00043835,120]
[392190032,1761246661790,-500.0,0.00043835,120]
[392190033,1761246661799,-500.0,0.00043835,120]
[392190034,1761246661813,-500.0,0.00043835,120]
[392190035,1761246661823,-500.0,0.00043835,120]
[392190036,1761246661833,-500.0,0.00043835,120]
[392190037,1761246661843,-500.0,0.00043835,120]
[392190038,1761246661852,-500.0,0.00043835,120]
[392190039,1761246661861,-500.0,0.00043835,120]
[392190040,1761246661871,-500.0,0.00043835,120]
[392190041,1761246661881,-500.0,0.00043835,120]
[392190042,1761246661890,-500.0,0.00043835,120]
[392190043,1761246661900,-239.9,0.00043835,120]
[392190044,1761246661911,-551.07095313,0.00043835,120]
[392190045,1761246661921,-500.0,0.00043835,120]
[392190046,1761246661931,-500.0,0.00043835,120]
[392190047,1761246661942,-500.0,0.00043835,2]
[392190048,1761246661953,-500.0,0.00043835,120]
[392190049,1761246661963,-500.0,0.00043835,2]
[392190050,1761246661974,-500.0,0.00043835,120]
[392190051,1761246661983,-500.0,0.00043835,2]
[392190052,1761246661992,-500.0,0.00043835,120]
[392190053,1761246662001,-350.0,0.00043835,120]
[392190054,1761246662014,-500.0,0.00043835,2]
[392190055,1761246662026,-222.18367181,0.00043835,2]
[392190056,1761246662040,-498.39999871,0.00043835,2]
[392190057,1761246662051,-500.0,0.00043835,120]
[392190058,1761246662061,-500.0,0.00043835,120]
[392190059,1761246662071,-500.0,0.00043835,30]
[392190060,1761246662081,-500.0,0.00043835,120]
[392190061,1761246662180,-500.0,0.00043835,30]
[392190062,1761246662194,-500.0,0.00043835,120]
[392190063,1761246662205,-500.0,0.00043835,120]
[392190064,1761246662215,-500.0,0.00043835,120]
[392190065,1761246662226,-360.42,0.00043835,120]
[392190066,1761246662236,-500.0,0.00043835,120]
[392190067,1761246662246,-388.78162999,0.00043835,120]
[392190068,1761246662255,-500.0,0.00043835,120]
[392190069,1761246662264,-500.0,0.00043835,120]
[392190070,1761246662274,-500.0,0.00043835,120]
[392190071,1761246662284,-500.0,0.00043835,120]
[392190072,1761246662294,-500.0,0.00043835,120]
[392190073,1761246662304,-500.0,0.00043835,120]
[392190074,1761246662314,-500.0,0.00043835,120]
[392190075,1761246662324,-500.0,0.00043835,120]
[392190076,1761246662334,-500.0,0.00043835,120]
[392190077,1761246662343,-391.55757337,0.00043835,120]
[392190078,1761246662352,-500.0,0.00043835,120]
[392190079,1761246662361,-500.0,0.00043835,120]
[392190080,1761246662370,-500.0,0.00043835,120]
[392190081,1761246662379,-500.0,0.00043835,120]
[392190082,1761246662392,-500.0,0.00043835,120]
[392190083,1761246662401,-500.0,0.00043835,120]
[392190084,1761246662411,-500.0,0.00043835,120]
[392190085,1761246662420,-500.0,0.00043835,120]
[392190086,1761246662430,-500.0,0.00043835,120]
[392190087,1761246662439,-500.0,0.00043835,120]
[392190088,1761246662448,-500.0,0.00043835,120]
[392190089,1761246662456,-500.0,0.00043835,120]
[392190090,1761246662466,-500.0,0.00043835,120]
[392190091,1761246662475,-500.0,0.00043835,120]
[392190092,1761246662485,-500.0,0.00043835,120]
[392190093,1761246662494,-500.0,0.00043835,120]
[392190094,1761246662504,-500.0,0.00043835,120]
[392190095,1761246662513,-500.0,0.00043835,120]
[392190096,1761246662522,-500.0,0.00043835,120]
[392190097,1761246662531,-500.0,0.00043835,120]
[392190098,1761246662540,-548.42,0.00043835,120]
[392190099,1761246662550,-500.0,0.00043835,120]
[392190100,1761246662559,-500.0,0.00043835,120]
[392190101,1761246662569,-500.0,0.00043835,120]
[392190102,1761246662578,-500.0,0.00043835,120]
[392190103,1761246662587,-392.30603797,0.00043835,120]
[392190104,1761246662600,-500.0,0.00043835,120]
[392190105,1761246662610,-500.0,0.00043835,120]
[392190106,1761246662619,-500.0,0.00043835,120]
[392190107,1761246662628,-601.43171797,0.0004388,120]
[392190108,1761246662637,-748.88,0.00043899,120]
[392190109,1761246662647,-500.0,0.00043899,120]
[392190110,1761246662656,-535.85,0.00043899,30]
[392190111,1761246662665,-522.24,0.00043899,120]
[392190112,1761246662674,-1242.79,0.00043899,120]
[392190113,1761246662684,-926.78,0.00043899,120]
[392190114,1761246662693,-249860.67645474,0.000439,120]
[392190115,1761246662703,-157.39475989,0.0004394,120]
[392190116,1761246662712,-1003.0,0.0004395,60]
[392190117,1761246662726,-10103.15589341,0.00043966,15]
[392190118,1761246662747,-8500.7817282,0.00043979,120]
[392190119,1761246662765,-188.59207168,0.00043984,15]
[392190120,1761246662789,-188.99,0.00044,7]
[392190121,1761246662806,-300.0,0.00044,2]
[392190122,1761246662823,-21087.92380437,0.00044,2]
[392190123,1761246662841,-1029.93961904,0.00044,120]
[392190124,1761246662861,-1800.0,0.00044,30]
[392190125,1761246662881,-191.63,0.000441,7]
[392190126,1761246662899,-190.63,0.000441,7]
[392190127,1761246662920,-188.99,0.000441,7]
[392190128,1761246662940,-400.79242976,0.000441,30]
[392190129,1761246662954,-1425.0,0.00044129,2]
[392190130,1761246662974,-888.0,0.00044133,2]
[392190131,1761246662987,-748.88,0.00044153,120]
[392190132,1761246663003,-748.88,0.00044153,120]
[392190133,1761246663018,-748.88,0.00044153,120]
[392190134,1761246663038,-748.88,0.00044153,120]
[392190135,1761246663053,-749.03,0.00044153,120]
[392190136,1761246663068,-500.0,0.00044153,120]
[392190137,1761246663083,-438.62,0.00044153,120]
[392190138,1761246663098,-535.85,0.00044153,30]
[392190139,1761246663113,-535.85,0.00044153,30]
[392190140,1761246663140,-535.85,0.00044153,30]
[392190141,1761246663165,-535.85,0.00044153,30]
[392190142,1761246663183,-535.9,0.00044153,30]
[392190143,1761246663202,-522.24,0.00044153,120]
[392190145,1761246663219,-522.24,0.00044153,120]
[392190146,1761246663236,-522.24,0.00044153,120]
[392190148,1761246663253,-522.24,0.00044153,120]
[392190149,1761246663269,-522.27,0.00044153,120]
[392190151,1761246663284,-1242.79,0.00044153,120]
[392190152,1761246663298,-1242.79,0.00044153,120]
[392190154,1761246663313,-1242.79,0.00044153,120]
[392190155,1761246663329,-1242.79,0.00044153,120]
[392190157,1761246663343,-1242.87,0.00044153,120]
[392190158,1761246663358,-926.78,0.00044153,120]
[392190159,1761246663373,-926.78,0.00044153,120]
[392190160,1761246663388,-926.78,0.00044153,120]
[392190161,1761246663403,-926.78,0.00044153,120]
[392190162,1761246663418,-926.95125855,0.00044153,120]
[392190163,1761246663431,-258.0,0.00044154,2]
[392190164,1761246663447,-161.683,0.00044154,2]
[392190165,1761246663463,-818.0,0.00044154,2]
[392190166,1761246663479,-2053.0,0.00044154,2]
[392190167,1761246663493,-572.0,0.00044154,2]
[392190168,1761246663508,-3412.0,0.00044154,2]
[392190169,1761246663523,-605.0,0.00044154,2]
[392190170,1761246663537,-1311.0,0.00044154,2]
[392190171,1761246663552,-1591.0,0.00044154,2]
[392190172,1761246663569,-1269.0,0.00044154,2]
[392190173,1761246663580,-817.0,0.00044154,2]
[392190174,1761246663590,-907.788,0.00044154,2]
[392190175,1761246663600,-458.0,0.00044184,30]
[392190176,1761246663731,-2016.59,0.000442,14]
[392190177,1761246663748,-152.06004125,0.00044249,14]
[392190178,1761246663758,-1097.22684519,0.000443,120]
[392190179,1761246663767,-5888.0,0.000443,2]
[392190180,1761246663778,-1559.2355689,0.00044338,2]
[392190181,1761246663787,-1000.0,0.00044383,120]
[392190182,1761246663797,-4217.0,0.00044463,30]
[392190183,1761246663807,-1425.0,0.00044499,2]
[392190184,1761246663816,-188.99,0.000445,7]
[392190185,1761246663825,-200.0,0.000445,16]
[392190186,1761246663835,-1425.0,0.00044506,2]
[392190187,1761246663845,-547.46,0.00044548,30]
[392190188,1761246663854,-500.0,0.00044596,60]
[392190189,1761246663864,-200.0,0.000446,16]
[392190190,1761246663875,-1127.0,0.000446,7]
[392190191,1761246663884,-458.0,0.00044639,30]
[392190192,1761246663894,-750.58631558,0.00044657,120]
[392190193,1761246663903,-2607.0,0.00044695,2]
[392190194,1761246663912,-10000.21668027,0.000447,2]
[392190195,1761246663922,-200.0,0.000447,16]
[392190196,1761246663931,-500.0,0.00044767,30]
[392190197,1761246663941,-200.0,0.000448,16]
[392190198,1761246663950,-2305.0,0.00044823,7]
[392190199,1761246663960,-900.0,0.000449,16]
[392190200,1761246663970,-10103.15589341,0.000449,15]
[392190201,1761246663981,-646.87581535,0.0004492,120]
[392190202,1761246663992,-188.59207168,0.0004492,15]
[392190203,1761246664002,-1000.0,0.00044924,14]
[392190204,1761246664011,-672.99088956,0.0004493,17]
[392190205,1761246664021,-696.018,0.0004493,120]
[392190206,1761246664036,-1559.2355689,0.00044941,2]
[392190207,1761246664046,-96973.48246368,0.0004497,120]
[392190208,1761246664056,-400.0,0.0004497,3]
[392190209,1761246664067,-400.0,0.0004497,3]
[392190210,1761246664077,-309.77326696,0.0004499,7]
[392190211,1761246664086,-3082.0,0.00044997,120]
[392190212,1761246664096,-1000.0,0.00044999,120]
[392190213,1761246664107,-1177.65810365,0.00044999,60]
[392190214,1761246664116,-458921.99361124,0.00045,120]
[392190215,1761246664125,-187538.57853893,0.00045,120]
[392190216,1761246664308,-3565.63723845,0.00045,120]
[392190217,1761246664356,-555.86845338,0.00045,120]
[392190218,1761246664368,-1761.90064516,0.00045,120]
[392190219,1761246664382,-11730.73510143,0.00045,120]
[392190220,1761246664400,-241.0,0.0004275,120]
[392190221,1761246664410,-314.3150895,0.00045,120]
[392190222,1761246664421,-1184.7,0.00045,120]
[392190223,1761246664432,-868.14495538,0.00045,120]
[392190224,1761246664554,-151.0,0.00036598,30]
[392190225,1761246664563,-180.667211,0.00036598,30]
[392190226,1761246664573,-151.0,0.00036598,30]
[392190227,1761246664582,-151.0,0.00036601,30]
[392190228,1761246664592,-180.667211,0.00036601,30]
[392190229,1761246664601,-151.0,0.00036601,30]
[392190230,1761246664610,-151.0,0.0003837,120]
[392190231,1761246664619,-180.667211,0.0003837,120]
[392190232,1761246664629,-151.0,0.00041286,120]
[392190233,1761246664639,-180.667211,0.00041286,120]
[392190234,1761246664647,-129.34119704,0.0004275,120]
[392190235,1761246664659,-21.65880296,0.0004275,120]
[392190236,1761246664668,-500.0,0.00043835,120]
[392190237,1761246664677,-500.0,0.00043835,120]
[392190238,1761246664687,-500.0,0.00043835,120]
[392190239,1761246664696,-632.52744251,0.00043835,120]
[392190240,1761246664706,-262421.54361064,0.00045,120]
[392190241,1761246665108,-3770.76256192,0.00045,120]
[392190242,1761246665120,-14125.88111609,0.00045,120]
[392190243,1761246665131,-270.582,0.00045,120]
[392190244,1761246665144,-526.37120337,0.00045,120]
[392190245,1761246665156,-19227.03644535,0.00045,120]
[392190246,1761246665172,-151.0,0.0003837,120]
[392190247,1761246665182,-10263.01975283,0.00045,120]
[392190248,1761246665198,-180.667211,0.0004275,120]
[392190249,1761246665207,-319544.99388547,0.00045,120]
[392190250,1761246665334,-532.91937401,0.00036498,2]
[392190251,1761246665344,-584.53942759,0.00036498,11]
[392190252,1761246665355,-35.75863532,0.00036498,11]
[392190253,1761246665364,-180.667211,0.00036598,30]
[392190254,1761246665374,-180.667211,0.00036598,30]
[392190255,1761246665383,-151.0,0.00036598,30]
[392190256,1761246665392,-180.667211,0.00036601,30]
[392190257,1761246665402,-180.667211,0.00036601,30]
[392190258,1761246665411,-151.0,0.00036601,30]
[392190259,1761246665421,-180.667211,0.0003837,120]
[392190260,1761246665430,-180.667211,0.00041286,120]
[392190261,1761246665440,-414.24,0.00041808,30]
[392190262,1761246665450,-16890.93862512,0.00042099,15]
[392190263,1761246665460,-180.667211,0.0004275,120]
[392190264,1761246665470,-488.61,0.00042962,30]
[392190265,1761246665569,-183.5,0.00043726,30]
[392190266,1761246665580,-4065.90426256,0.00045,120]
[392190267,1761246665595,-2793.89194929,0.00045,120]
[392190294,1761246728920,749.56052645,0.00036597,120]
[392190442,1761247138086,1462.93997544,0.00024,2]
[392190456,1761247188159,474.53,0.00021336,2]
[392190457,1761247188391,474.53,0.00022459,2]
[392190458,1761247188614,474.53,0.00023582,2]
[392190513,1761247356561,-250.0,0.00024705,2]
[392190514,1761247357566,-224.53,0.00024705,2]
[392190515,1761247357587,-25.47,0.00024932,2]
[392190516,1761247359540,-250.0,0.00024932,2]
[392190517,1761247360345,-224.53,0.00024932,2]
[392190518,1761247360365,-25.47,0.00025828,2]
[392190519,1761247361053,-250.0,0.00025828,2]
[392190520,1761247361477,-199.06,0.00025828,2]
[392190521,1761247361498,-50.94,0.0002695,2]
[392190522,1761247361971,-250.0,0.0002695,2]
[392190523,1761247362482,-173.59,0.0002695,2]
[392190524,1761247362504,-76.41,0.00028073,2]
[392190525,1761247362918,-250.0,0.00028073,2]
[392190526,1761247363398,-148.12,0.00028073,2]
[392190527,1761247363420,-101.88,0.00029196,2]
[392190528,1761247363879,-250.0,0.00029196,2]
[392190529,1761247364450,-122.65,0.00029196,2]
[392190530,1761247364471,-127.35,0.00030319,2]
[392190531,1761247365089,-250.0,0.00030319,2]
[392190532,1761247365741,-97.18,0.00030319,2]
[392190533,1761247365762,-152.82,0.00031,4]
[392190534,1761247365976,-200.64244503,0.00031,4]
[392190535,1761247365998,-49.35755497,0.00031442,2]
[392190536,1761247366399,-250.0,0.00031442,2]
[392190537,1761247366713,-175.17244503,0.00031442,2]
[392190538,1761247366734,-74.82755497,0.00032565,2]
[392190539,1761247367242,-250.0,0.00032565,2]
[392190540,1761247367593,-149.70244503,0.00032565,2]
[392190541,1761247367615,-100.29755497,0.00033548,2]
[392190542,1761247368053,-250.0,0.00033548,2]
[392190543,1761247368501,-149.70244503,0.00033548,2]
[392190544,1761247368524,-100.29755497,0.00033688,2]
[392190545,1761247368810,-250.0,0.00033688,2]
[392190546,1761247369384,-124.23244503,0.00033688,2]
[392190547,1761247369408,-125.76755497,0.00033838,2]
[392190548,1761247369885,-46.26244503,0.00033838,2]
[392190549,1761247369909,-203.73755497,0.00034811,2]
[392190550,1761247370419,-250.0,0.00034811,2]
[392190551,1761247371727,-20.79244503,0.00034811,2]
[392190552,1761247371749,-229.20755497,0.00035934,2]
[392190553,1761247372295,-245.32244503,0.00035934,2]
[392190554,1761247372316,-4.67755497,0.00036,120]
[392190555,1761247399629,150.0,0.00024932,2]
[392190566,1761247427799,-350.0,0.00024932,2]
[392190567,1761247479464,316.82,0.00013699,2]
[392190568,1761247479720,316.82,0.00020187,2]
[392190579,1761247500744,575.0,0.00027397,120]
[392190581,1761247508434,1479.83002456,7.945e-05,2]
[392190582,1761247508457,632.19211344,7.945e-05,2]
[392190583,1761247518009,4367.80788656,0.00021,2]
[392190584,1761247541479,45730.56128245,0.0002,2]
[392190585,1761247541504,3905.71449755,0.0002,2]
[392190656,1761247576919,-6750.0,0.00021,2]
[392190671,1761247676111,1094.28550245,0.00015,2]
[392190672,1761247676131,20000.0,0.00015,2]
[392190673,1761247676155,6208.82344864,0.00015,2]
[392190674,1761247676186,6208.82344864,0.00015,2]
[392190675,1761247676209,6208.82344864,0.00015,2]
[392190676,1761247676386,80000.0,0.00015,2]
[392190677,1761247676411,15000.0,0.00015,2]
[392190678,1761247676431,15000.0,0.00015,2]
[392190679,1761247676459,15000.0,0.00015,2]
[392190680,1761247676481,15000.0,0.00015,2]
[392190681,1761247676501,15000.0,0.00015,2]
[392190682,1761247676522,15000.0,0.00015,2]
[392190683,1761247676544,15000.0,0.00015,2]
[392190684,1761247676567,15000.0,0.00015,2]
[392190685,1761247676587,15000.0,0.00015,2]
[392190686,1761247676606,15000.0,0.00015,2]
[392190687,1761247676626,15000.0,0.00015,2]
[392190688,1761247676649,15000.0,0.00015,2]
[392190689,1761247676670,15000.0,0.00015,2]
[392190690,1761247676691,15000.0,0.00015,2]
[392190691,1761247676711,15000.0,0.00015,2]
[392190692,1761247676731,15000.0,0.00015,2]
[392190693,1761247676751,15000.0,0.00015,2]
[392190694,1761247676771,15000.0,0.00015,2]
[392190695,1761247676793,15000.0,0.00015,2]
[392190696,1761247676814,15000.0,0.00015,2]
[392190697,1761247676834,15000.0,0.00015,2]
[392190698,1761247676854,15000.0,0.00015,2]
[392190699,1761247676874,15000.0,0.00015,2]
[392190700,1761247676894,15000.0,0.00015,2]
[392190701,1761247676914,15000.0,0.00015,2]
[392190702,1761247676936,15000.0,0.00015,2]
[392190703,1761247676956,15000.0,0.00015,2]
[392190704,1761247676976,15000.0,0.00015,2]
[392190705,1761247676996,15000.0,0.00015,2]
[392190706,1761247677017,15000.0,0.00015,2]
[392190707,1761247677037,15000.0,0.00015,2]
[392190708,1761247677057,15000.0,0.00015,2]
[392190709,1761247677077,15000.0,0.00015,2]
[392190710,1761247677097,15000.0,0.00015,2]
[392190711,1761247677117,15000.0,0.00015,2]
[392190712,1761247677139,15000.0,0.00015,2]
[392190713,1761247677160,15000.0,0.00015,2]
[392190714,1761247677181,15000.0,0.00015,2]
[392190715,1761247677202,7475.19008152,0.00015,2]
[392190719,1761247702771,387.62211751,7.888e-05,2]
[392190720,1761247709883,-158.84141481,0.0002,2]
[392190723,1761247724443,198.56,0.0003661,31]
[392190724,1761247758141,-1121.3877294,0.0002,2]
[392190725,1761247758164,-152.86968288,0.000205,2]
[392190726,1761247758184,-368.92844056,0.00021,2]
[392190727,1761247759123,-3213.564354,0.00021,2]
[392190728,1761247766126,-992.702172,0.00021,2]
[392190732,1761247771105,-1057.93406584,0.00021,2]
[392190733,1761247771124,-16656.13021851,0.000215,2]
[392190734,1761247774108,-2576.99759261,0.000215,2]
[392190735,1761247774128,-2900.0,0.000225,15]
[392190736,1761247774149,-316.82,0.00026676,2]
[392190737,1761247774170,-161.68303364,0.00027,2]
[392190738,1761247774190,-2000.00822521,0.0003,2]
[392190739,1761247779768,1000.0,0.00036609,60]
[392190740,1761247792488,1000.0,0.00036609,30]
[392190741,1761247803166,533.57,0.00036609,30]
[392190742,1761247803264,421.06983748,0.00036609,30]
[392190743,1761247803362,150.0,0.00036609,30]
[392190744,1761247803474,375.0,0.00036609,30]
[392190745,1761247803833,1000.0,0.00036609,30]
[392190746,1761247803967,1000.0,0.00036609,30]
[392190747,1761247804063,1000.0,0.00036609,30]
[392190748,1761247804625,500.0,0.00021499,2]
[392190749,1761247804667,500.0,0.00021499,2]
[392190750,1761247804774,500.0,0.00021499,2]
[392190751,1761247804841,500.0,0.00021499,2]
[392190752,1761247804896,638.97503452,0.00021499,2]
[392190753,1761247804996,1000.0,0.00036609,30]
[392190754,1761247805027,500.0,0.00021499,2]
[392190755,1761247805137,1000.0,0.00036609,30]
[392190756,1761247805246,1000.0,0.00036609,30]
[392190757,1761247805360,1000.0,0.00036609,30]
[392190758,1761247805755,1000.0,0.00036609,30]
[392190759,1761247806203,1000.0,0.00036609,30]
[392190760,1761247806296,1000.0,0.00036609,30]
[392190761,1761247806950,1000.0,0.00036609,30]
[392190762,1761247807504,1000.0,0.00036609,30]
[392190763,1761247807594,1000.0,0.00036609,30]
[392190764,1761247809916,1000.0,0.00036609,30]
[392190765,1761247810008,1000.0,0.00036609,30]
[392190766,1761247810795,444.47159297,0.00036609,30]
[392190767,1761247811447,1000.0,0.00036609,30]
[392190768,1761247811538,1000.0,0.00036609,30]
[392190769,1761247812566,809.93197864,0.00036609,30]
[392190770,1761247812676,947.25163687,0.00036609,30]
[392190771,1761247817963,1000.0,0.00036609,30]
[392190773,1761247830702,1000.0,0.00036609,120]
[392190789,1761247831659,-353.46244503,0.00031,4]
[392190791,1761247831668,-150.0,0.00032133,2]
[392190792,1761247831678,-160.74755497,0.00032133,2]
[392190793,1761247831714,-50.80244503,0.00032133,2]
[392190794,1761247831725,-316.82,0.00033165,2]
[392190795,1761247831735,-50.03188297,0.000341,120]
[392190796,1761247831747,-249.96811703,0.000341,120]
[392190797,1761247831756,-376.28765492,0.000341,120]
[392190798,1761247831768,-30.69764508,0.000341,120]
[392190799,1761247831777,-4956.53,0.00035935,2]
[392190800,1761247831787,-1200.0,0.00035999,3]
[392190801,1761247831796,-1586.64597787,0.00036,5]
[392190802,1761247831805,-12414.7208516,0.00036,2]
[392190803,1761247831815,-200.0,0.000365,13]
[392190804,1761247831825,-150.0,0.00036508,2]
[392190805,1761247831834,-169.73286453,0.00036509,15]
[392190806,1761247831844,-570.38228188,0.00036509,2]
[392190807,1761247831853,-176.76056241,0.00036509,11]
[392190808,1761247831863,-115773.94097017,0.00036509,2]
[392190809,1761247831874,-12754.79192102,0.00036509,2]
[392190810,1761247831885,-358.79633395,0.00036509,2]
[392190811,1761247831926,-2900.0,0.00036509,2]
[392190812,1761247831942,-1053.03409589,0.00036509,2]
[392190813,1761247831952,-385.9555348,0.00036509,2]
[392190814,1761247831963,-428.0,0.00036509,2]
[392190815,1761247831974,-1118.96304471,0.00036509,2]
[392190816,1761247831989,-1643.0161453,0.00036509,2]
[392190817,1761247831999,-200.90864579,0.00036509,7]
[392190818,1761247832009,-195.673476,0.00036509,2]
[392190819,1761247832019,-2713.97665549,0.0003651,2]
[392190820,1761247832028,-466.30445225,0.0003651,2]
[392190821,1761247832038,-272.1528685,0.00036525,2]
[392190822,1761247832047,-150.36,0.00036599,2]
[392190823,1761247832057,-150.36,0.00036599,2]
[392190824,1761247832066,-206.5155113,0.00036599,2]
[392190825,1761247832076,-206.5155113,0.00036599,2]
[392190826,1761247832085,-500.0,0.000366,13]
[392190827,1761247832094,-151.0,0.00036606,14]
[392190828,1761247832103,-171.2211562,0.00036608,15]
[392190829,1761247832113,-635.67105457,0.00036608,15]
[392190830,1761247832122,-151.0,0.00036609,30]
[392190831,1761247832131,-151.0,0.00036609,30]
[392190832,1761247832140,-176.146582,0.00036609,30]
[392190833,1761247832149,-151.0,0.00036609,30]
[392190834,1761247832158,-176.146582,0.00036609,30]
[392190835,1761247832167,-176.146582,0.00036609,30]
[392190836,1761247832176,-153.882115,0.00036609,30]
[392190837,1761247832186,-176.146582,0.00036609,30]
[392190838,1761247832195,-205.844579,0.00036609,30]
[392190839,1761247832204,-151.0,0.00036609,30]
[392190840,1761247832214,-151.0,0.00036609,30]
[392190841,1761247832223,-151.0,0.00036609,30]
[392190842,1761247832232,-151.0,0.00036609,30]
[392190843,1761247832242,-154.903644,0.00036609,30]
[392190844,1761247832251,-151.0,0.00036609,30]
[392190845,1761247832260,-151.0,0.00036609,30]
[392190846,1761247832270,-151.0,0.00036609,30]
[392190847,1761247832280,-274.02048,0.00036609,30]
[392190848,1761247832290,-151.0,0.00036609,30]
[392190849,1761247832300,-151.0,0.00036609,30]
[392190850,1761247832309,-151.0,0.00036609,30]
[392190851,1761247832319,-153.700556,0.00036609,30]
[392190852,1761247832327,-147.58953902,0.00036609,30]
[392190854,1761247832339,-3.41046098,0.00036609,30]
[392190856,1761247832348,-151.0,0.00036609,30]
[392190857,1761247832357,-154.2615,0.00036609,30]
[392190858,1761247832366,-151.0,0.00036609,30]
[392190859,1761247832375,-151.0,0.00036609,30]
[392190860,1761247832384,-151.0,0.00036609,30]
[392190861,1761247832393,-154.641549,0.00036609,30]
[392190862,1761247832401,-1428.87580986,0.00036609,2]
[392190863,1761247832412,-814.82102388,0.00036609,2]
[392190870,1761247837664,-255.11076555,0.00035999,15]
[392190871,1761247837674,-348.77500384,0.00035999,15]